bitfinex/quotes_ETHUSD_20240701
["timestamp","ask_amount","ask_price","bid_price","bid_amount"]
[1719877422962,5.07683,3445.0,3444.4,0.736]
[1719877423176,1.83481039,3444.9,3444.4,0.736]
[1719877423364,1.33481039,3444.8,3444.4,0.736]
[1719877423568,0.50251315,3444.7,3444.4,0.736]
[1719877423884,5.07683,3445.0,3444.4,0.736]
[1719877423885,1.02702058,3444.6,3444.4,0.736]
[1719877424090,0.19472445,3444.6,3444.4,0.736]
[1719877424652,5.07683,3445.0,3444.4,0.736]
[1719877424852,1.52955111,3444.9,3444.4,0.736]
[1719877425047,1.33482666,3444.8,3444.4,0.736]
[1719877425247,1.33482666,3444.7,3444.4,0.736]
[1719877425444,1.02703046,3444.6,3444.4,0.736]
[1719877425687,0.19472445,3444.6,3444.4,0.736]
[1719877426163,5.07683,3445.0,3444.3,3.63928]
[1719877426365,1.83473923,3444.9,3444.3,3.63928]
[1719877426687,1.52953772,3444.8,3444.3,3.63928]
[1719877426906,0.19479849,3444.8,3444.3,3.63928]
[1719877427053,1.33473862,3444.7,3444.3,3.63928]
[1719877427255,1.02703136,3444.6,3444.3,3.63928]
[1719877427583,0.19480702,3444.6,3444.3,3.63928]
[1719877427956,2.90283,3445.0,3444.3,3.63928]
[1719877428165,0.19480702,3444.5,3444.3,3.63928]
[1719877428360,2.90283,3445.0,3444.3,4.526409]
[1719877428566,0.19480702,3444.4,3444.3,3.63928]
[1719877428773,2.90283,3445.0,3444.3,3.63928]
[1719877428949,0.19480702,3444.4,3444.3,3.63928]
[1719877429149,2.90283,3445.0,3444.3,3.63928]
[1719877429350,0.19480702,3444.4,3444.3,3.63928]
[1719877429594,2.90283,3445.0,3444.3,3.63928]
[1719877429775,0.19480702,3444.4,3444.3,3.63928]
[1719877429976,1.83473342,3444.9,3444.3,3.63928]
[1719877429977,2.90283,3445.0,3444.3,3.63928]
[1719877430151,0.19480702,3444.4,3444.3,3.63928]
[1719877430662,2.90283,3445.0,3444.3,3.63928]
[1719877430862,2.02954183,3444.9,3444.3,3.63928]
[1719877431065,2.02954183,3444.9,3444.4,2.90325]
[1719877431274,0.83224669,3444.8,3444.4,2.90325]
[1719877431446,1.33476237,3444.8,3444.4,2.90325]
[1719877431652,0.19480702,3444.7,3444.4,2.90325]
[1719877431968,1.33476237,3444.8,3444.4,2.90325]
[1719877432168,0.19480702,3444.6,3444.4,2.90325]
[1719877432368,2.90283,3445.0,3444.4,2.90325]
[1719877432701,1.83510049,3444.9,3444.4,2.90325]
[1719877432857,2.02990751,3444.9,3444.4,2.90325]
[1719877434001,0.83258496,3444.8,3444.4,2.90325]
[1719877434215,1.33506804,3444.8,3444.4,2.90325]
[1719877434579,0.19480702,3444.7,3444.4,2.90325]
[1719877434905,1.33506804,3444.8,3444.4,2.90325]
[1719877435065,0.19480702,3444.6,3444.4,2.90325]
[1719877435267,0.50251454,3444.8,3444.4,2.90325]
[1719877435497,1.52987403,3444.7,3444.4,2.90325]
[1719877435694,0.50251454,3444.6,3444.4,2.90325]
[1719877436089,0.50251454,3444.6,3444.2,5.23186]
[1719877436268,0.19480702,3444.5,3444.3,2.90334]
[1719877436467,2.174,3444.8,3444.3,2.90334]
[1719877436715,1.52970261,3444.7,3444.3,2.90334]
[1719877436909,0.19480702,3444.7,3444.3,2.90334]
[1719877437122,1.33486541,3444.6,3444.3,2.90334]
[1719877437425,0.19480702,3444.5,3444.3,2.90334]
[1719877437572,0.50252931,3444.5,3444.3,2.90334]
[1719877437917,0.19480702,3444.4,3444.3,2.90334]
[1719877438301,2.674,3444.8,3444.3,2.90334]
[1719877438888,0.69733292,3444.4,3444.3,2.90334]
[1719877439204,0.69733292,3444.4,3444.2,0.736]
[1719877439365,0.5025259,3444.3,3444.2,0.736]
[1719877439824,2.174,3444.8,3444.2,3.63937]
[1719877439825,0.5025259,3444.7,3444.2,3.63937]
[1719877439972,1.33487553,3444.6,3444.2,3.63937]
[1719877440171,0.5025259,3444.6,3444.2,3.63937]
[1719877440378,1.02714763,3444.5,3444.2,3.63937]
[1719877440601,0.69734325,3444.5,3444.2,3.63937]
[1719877440990,0.50253623,3444.4,3444.2,3.63937]
[1719877441317,0.19478426,3444.3,3444.2,3.63937]
[1719877441610,0.69732049,3444.3,3444.2,3.63937]
[1719877442777,0.19478426,3444.3,3444.2,3.63937]
[1719877442978,0.50253962,3444.3,3444.2,3.63937]
[1719877443172,0.69732388,3444.3,3444.2,3.63937]
[1719877446277,0.69732001,3444.3,3444.2,3.63937]
[1719877446714,0.19478426,3444.3,3444.2,3.63937]
[1719877447424,2.174,3444.8,3444.2,3.63937]
[1719877447425,0.50253501,3444.5,3444.2,3.63937]
[1719877447595,0.19478426,3444.4,3444.2,3.63937]
[1719877447793,0.50253501,3444.3,3444.2,3.63937]
[1719877448000,0.19478426,3444.3,3444.2,3.63937]
[1719877448308,0.50253501,3444.6,3444.2,3.63937]
[1719877448507,0.19478426,3444.3,3444.2,3.63937]
[1719877449141,0.69731927,3444.3,3444.2,3.63937]
[1719877449424,0.69731939,3444.3,3444.2,3.63937]
[1719877451625,0.69731939,3444.3,3444.2,6.01227]
[1719877452601,0.69731728,3444.3,3444.2,6.01227]
[1719877452898,0.69731728,3444.3,3444.2,6.903842]
[1719877453537,1.52957862,3444.3,3444.2,6.903842]
[1719877453703,1.52957862,3444.3,3444.2,9.807272]
[1719877453904,0.69731728,3444.3,3444.2,9.807272]
[1719877454254,0.5,3444.9,3444.5,2.4254]
[1719877454412,1.52955029,3444.8,3444.7,0.736]
[1719877455801,0.19478138,3444.8,3444.7,0.736]
[1719877456002,0.50247656,3444.8,3444.7,0.736]
[1719877456244,1.52955283,3444.8,3444.7,0.736]
[1719877456441,1.52954525,3444.8,3444.7,0.736]
[1719877458943,1.52954525,3444.8,3444.5,6.06457]
[1719877459262,1.33479961,3444.7,3444.5,6.06457]
[1719877459558,1.33479961,3444.6,3444.5,6.06457]
[1719877459852,1.52960093,3444.6,3444.5,6.06457]
[1719877460224,1.52960093,3444.6,3444.5,7.0505182]
[1719877461356,0.19480132,3444.6,3444.5,9.2176882]
[1719877461517,0.19480132,3444.6,3444.5,9.3145182]
[1719877461716,0.736,3445.3,3444.5,9.3145182]
[1719877461911,5.65875068,3445.2,3444.3,5.19793]
[1719877462117,2.174,3445.0,3444.2,2.90343]
[1719877462342,4.54685328,3444.9,3444.3,2.90334]
[1719877462649,2.68810523,3444.8,3444.3,2.90334]
[1719877462811,2.88297561,3444.7,3444.3,2.90334]
[1719877463013,1.33481629,3444.6,3444.3,2.90334]
[1719877463213,1.33481629,3444.5,3444.3,2.90334]
[1719877463455,1.02723701,3444.4,3444.3,2.90334]
[1719877464650,1.52977172,3444.4,3444.3,2.90334]
[1719877464856,1.02723701,3444.4,3444.3,2.90334]
[1719877465024,1.02723701,3444.4,3444.0,2.90359]
[1719877465230,0.194938,3444.4,3444.0,2.90359]
[1719877465455,0.83230756,3444.3,3444.1,2.90351]
[1719877465642,1.0272325,3444.2,3444.1,2.90351]
[1719877465846,1.02723222,3444.2,3444.1,2.90351]
[1719877466214,0.194938,3444.2,3444.1,2.90351]
[1719877466419,2.174,3444.6,3444.1,2.90351]
[1719877466647,1.52977335,3444.5,3444.1,2.90351]
[1719877466855,1.33483535,3444.4,3444.1,2.90351]
[1719877467060,1.02716149,3444.3,3444.1,3.63951]
[1719877467266,1.02716149,3444.3,3444.2,2.90343]
[1719877467267,0.19486967,3444.3,3444.2,2.90343]
[1719877467420,0.83228096,3444.3,3444.2,2.90343]
[1719877467616,0.19486967,3444.3,3444.2,2.90343]
[1719877467956,0.83228096,3444.6,3444.2,2.90343]
[1719877468166,0.19486967,3444.3,3444.2,2.90343]
[1719877468317,7.48,3444.8,3444.3,5.19411]
[1719877468663,0.83229988,3444.7,3444.0,2.3636]
[1719877468863,0.50247511,3444.6,3444.1,0.736]
[1719877469069,0.83229988,3444.5,3444.1,0.736]
[1719877469585,7.48,3444.8,3444.1,0.736]
[1719877469786,2.68781132,3444.7,3444.2,2.90342]
[1719877469953,1.3346791,3444.6,3444.2,2.90342]
[1719877470158,0.83220071,3444.5,3444.2,2.90342]
[1719877470521,3.02418522,3445.7,3445.3,5.9025]
[1719877470657,0.5,3445.4,3445.3,2.9025]
[1719877470861,1.236,3445.4,3444.4,2.3385]
[1719877471074,0.50236819,3445.3,3444.4,3.0745]
[1719877471381,1.00236819,3445.2,3444.4,3.0745]
[1719877471553,0.50241711,3445.1,3444.7,2.90295]
[1719877471880,0.50241711,3445.0,3444.7,2.90295]
[1719877472201,0.50241711,3444.9,3444.4,2.9032]
[1719877472403,0.50241711,3444.9,3444.6,2.90309]
[1719877472607,2.90243,3445.4,3444.5,0.736]
[1719877472608,0.50241711,3445.3,3444.5,0.736]
[1719877472883,0.5,3445.0,3444.5,1.4953458]
[1719877473091,0.50241711,3444.9,3444.5,0.736]
[1719877473440,2.90243,3445.4,3444.7,2.903]
[1719877473679,0.5,3445.0,3444.7,2.903]
[1719877473887,0.50244786,3444.9,3444.7,2.903]
[1719877474478,0.5,3445.0,3444.7,2.903]
[1719877474684,0.50244862,3444.9,3444.7,2.903]
[1719877474881,2.90243,3445.4,3444.7,2.903]
[1719877475054,0.5,3445.1,3444.9,2.90282]
[1719877475380,0.50244215,3445.0,3444.9,2.90282]
[1719877481292,0.5024429,3445.3,3444.9,2.90282]
[1719877481498,1.00243449,3445.2,3444.9,2.90282]
[1719877481819,0.50243449,3445.1,3444.9,2.90282]
[1719877482124,0.6843713,3445.0,3444.9,2.90282]
[1719877484602,0.18193681,3445.0,3444.9,2.90282]
[1719877484802,0.68436906,3445.0,3444.9,2.90282]
[1719877485116,0.6843729,3445.0,3444.9,2.90282]
[1719877486927,0.6843729,3445.0,3444.7,2.90294]
[1719877487129,0.18193681,3445.0,3444.7,2.90294]
[1719877487624,0.5,3445.1,3444.4,2.90325]
[1719877487792,0.18193681,3444.9,3444.4,2.90325]
[1719877487983,0.39903429,3445.0,3444.4,2.90325]
[1719877487984,0.50246573,3444.8,3444.4,2.90325]
[1719877488208,0.39903429,3445.0,3444.4,2.90325]
[1719877488418,0.18191675,3444.7,3444.4,2.90325]
[1719877488621,0.5,3444.9,3444.4,2.90325]
[1719877488825,0.18191675,3444.6,3444.4,2.90325]
[1719877489018,0.39903429,3445.0,3444.4,2.90325]
[1719877489223,0.18191675,3444.5,3444.4,2.90325]
[1719877489423,0.39903429,3445.0,3444.4,2.90325]
[1719877489624,0.18191675,3444.5,3444.4,2.90325]
[1719877489804,0.39903429,3445.0,3444.4,2.90325]
[1719877490008,0.18191675,3444.5,3444.4,2.90325]
[1719877490523,2.90267,3445.1,3444.4,2.90325]
[1719877490731,0.18191675,3444.5,3444.4,2.90325]
[1719877491026,2.90267,3445.1,3444.4,2.90325]
[1719877491327,0.50246706,3445.0,3444.4,2.90325]
[1719877491530,1.00246706,3444.9,3444.4,2.90325]
[1719877491856,0.50246706,3444.8,3444.4,2.90325]
[1719877492216,0.18194541,3444.7,3444.4,2.90325]
[1719877492528,2.90267,3445.1,3444.4,2.90325]
[1719877493928,0.18194541,3444.5,3444.4,2.90325]
[1719877494112,2.90267,3445.1,3444.4,2.90325]
[1719877494307,0.18194541,3444.5,3444.4,2.90325]
[1719877494514,0.5,3444.9,3444.4,2.90325]
[1719877494752,2.90267,3445.1,3444.4,2.90325]
[1719877494753,0.18194541,3444.5,3444.4,2.90325]
[1719877494914,2.90267,3445.1,3444.4,2.90325]
[1719877494915,0.50246802,3444.8,3444.4,2.90325]
[1719877495235,0.18194541,3444.5,3444.4,2.90325]
[1719877495435,2.90267,3445.1,3444.4,2.90325]
[1719877495635,0.5,3444.9,3444.4,2.90325]
[1719877495824,0.68441413,3444.8,3444.4,2.90325]
[1719877496023,0.50246872,3444.7,3444.4,2.90325]
[1719877496228,2.90267,3445.1,3444.4,2.90325]
[1719877496543,2.90293,3444.8,3444.1,2.90349]
[1719877496726,0.50246837,3444.7,3444.1,2.90349]
[1719877497039,0.18188234,3444.6,3443.9,8.21833]
[1719877497242,0.50249218,3444.5,3444.0,3.63959]
[1719877497537,0.18187088,3444.4,3444.0,3.63959]
[1719877497905,0.5,3444.6,3444.0,3.63959]
[1719877498130,0.68436807,3444.5,3444.0,3.63959]
[1719877498329,0.18187088,3444.5,3444.0,3.63959]
[1719877498607,3.31174438,3444.7,3444.0,3.63959]
[1719877498808,3.31174438,3444.7,3444.0,2.90359]
[1719877498809,4.41864362,3444.6,3444.0,2.90359]
[1719877499128,0.5024983,3444.5,3444.0,3.63959]
[1719877499813,0.18187088,3444.4,3444.0,3.63959]
[1719877500221,2.9031,3444.6,3444.0,3.63959]
[1719877500446,0.6843745,3444.5,3444.0,3.63959]
[1719877500746,1.1843745,3444.5,3444.0,3.63959]
[1719877500928,0.50250362,3444.4,3444.0,3.63959]
[1719877501137,0.18187088,3444.5,3444.0,3.63959]
[1719877501461,0.68437445,3444.4,3444.0,3.63959]
[1719877501807,0.18187088,3444.4,3444.0,3.63959]
[1719877502008,2.9031,3444.6,3444.0,3.63959]
[1719877502246,1.00250282,3444.5,3444.0,3.63959]
[1719877502545,0.68187088,3444.5,3444.2,3.63942]
[1719877502856,0.18187088,3444.5,3444.2,3.63942]
[1719877503036,2.90284,3444.9,3444.2,3.63942]
[1719877503211,0.5,3444.6,3444.2,3.63942]
[1719877503725,0.18181928,3444.5,3444.2,3.63942]
[1719877506754,7.88259,3445.2,3444.5,3.8214432]
[1719877506931,0.18185368,3444.6,3444.5,2.90317]
[1719877507119,7.88259,3445.2,3444.5,2.90317]
[1719877507320,0.5,3444.9,3444.5,2.90317]
[1719877507541,0.50247251,3444.8,3444.5,2.90317]
[1719877507748,0.68432619,3444.8,3444.5,2.90317]
[1719877508015,0.50247251,3444.7,3444.5,2.90317]
[1719877508456,0.18185368,3444.6,3444.5,2.90317]
[1719877508752,7.88259,3445.2,3444.5,2.90317]
[1719877508957,0.5,3444.9,3444.5,2.90317]
[1719877509143,0.50247448,3444.8,3444.5,2.90317]
[1719877509368,0.50247448,3444.7,3444.5,2.90317]
[1719877509557,0.68432816,3444.7,3444.5,2.90317]
[1719877509725,0.18185368,3444.7,3444.5,2.90317]
[1719877510069,0.18185368,3444.6,3444.5,2.90317]
[1719877510218,0.5,3444.9,3444.5,2.90317]
[1719877510424,0.50247277,3444.8,3444.5,2.90317]
[1719877510625,0.50247277,3444.7,3444.5,2.90317]
[1719877510858,2.90269,3445.1,3444.5,2.90317]
[1719877511070,0.5,3444.9,3444.5,2.90317]
[1719877511271,0.50247222,3444.8,3444.5,2.90317]
[1719877511572,0.6843259,3444.7,3444.5,2.90317]
[1719877511718,0.18185368,3444.7,3444.5,2.90317]
[1719877511922,2.90269,3445.1,3444.5,2.90317]
[1719877512121,0.5,3444.9,3444.5,2.90317]
[1719877512332,0.50247226,3444.8,3444.5,2.90317]
[1719877512529,0.50247226,3444.7,3444.5,2.90317]
[1719877513050,0.18185368,3444.6,3444.5,2.90317]
[1719877513356,2.90269,3445.1,3444.5,2.90317]
[1719877513556,0.18185368,3444.6,3444.5,2.90317]
[1719877513755,2.90269,3445.1,3444.5,2.90317]
[1719877513919,0.18185368,3444.6,3444.5,2.90317]
[1719877514621,0.18189954,3444.6,3444.5,2.90317]
[1719877514856,7.88261,3445.2,3444.5,2.90317]
[1719877515060,0.5,3444.9,3444.5,2.90317]
[1719877515357,0.50247137,3444.8,3444.5,2.90317]
[1719877515525,0.68437091,3444.8,3444.5,2.90317]
[1719877515736,0.50247137,3444.7,3444.5,2.90317]
[1719877516134,7.88261,3445.2,3444.5,2.90317]
[1719877516375,0.68437183,3444.6,3444.5,2.90317]
[1719877516534,0.50247229,3445.1,3444.5,2.90317]
[1719877516734,0.18189954,3444.6,3444.5,2.90317]
[1719877517066,0.50247229,3445.0,3444.7,2.427]
[1719877517067,0.5,3445.0,3444.7,2.427]
[1719877517244,0.50243781,3444.9,3444.7,2.427]
[1719877517447,4.98,3445.2,3444.7,3.323925]
[1719877517758,1.00242678,3445.1,3444.7,2.427]
[1719877517932,0.50242678,3445.0,3444.7,2.427]
[1719877518135,0.5,3445.1,3444.7,2.427]
[1719877518331,0.50242509,3445.0,3444.7,2.427]
[1719877518536,4.98,3445.2,3444.7,2.427]
[1719877518737,1.00242465,3445.1,3444.7,5.32997]
[1719877518965,0.50242465,3445.0,3444.7,6.226884]
[1719877519273,4.98,3445.2,3444.8,3.63889]
[1719877519469,1.00241396,3445.1,3444.8,3.63889]
[1719877519783,4.98,3445.2,3444.8,3.63889]
[1719877519948,0.50241517,3445.1,3444.8,3.63889]
[1719877520277,4.98,3445.2,3444.8,3.63889]
[1719877520568,0.50241641,3445.1,3444.8,3.63889]
[1719877520874,0.50241641,3445.0,3444.8,3.63889]
[1719877521058,0.50241641,3445.1,3444.8,3.63889]
[1719877521236,0.50241659,3445.0,3444.8,3.63889]
[1719877521442,4.98,3445.2,3444.8,3.63889]
[1719877521654,0.50241642,3445.1,3444.8,2.90289]
[1719877521951,4.98,3445.2,3444.8,2.90289]
[1719877522139,0.50241941,3445.1,3444.8,2.90289]
[1719877522476,4.98,3445.2,3444.8,2.90289]
[1719877522676,5.48,3445.2,3444.8,2.90289]
[1719877522975,0.50242213,3445.1,3444.8,2.90289]
[1719877523181,2.90242,3445.4,3444.8,2.90289]
[1719877523378,0.5,3445.2,3444.8,2.90289]
[1719877523582,0.50242172,3445.1,3444.8,2.90289]
[1719877523784,2.90242,3445.4,3444.7,2.427]
[1719877524089,0.5,3445.2,3444.7,2.427]
[1719877524392,0.50242371,3445.1,3444.7,2.427]
[1719877524585,0.50242371,3445.3,3444.7,2.427]
[1719877524780,0.5,3445.2,3444.7,2.427]
[1719877524944,0.50242371,3445.1,3444.7,2.427]
[1719877525139,0.50242371,3445.1,3444.7,5.32998]
[1719877525650,0.50242371,3445.0,3444.7,5.32998]
[1719877525955,2.90242,3445.4,3444.7,5.32998]
[1719877526170,0.5,3445.2,3444.7,5.32998]
[1719877526345,0.5024237,3445.1,3444.7,5.32998]
[1719877526741,0.5024237,3445.3,3444.7,5.32998]
[1719877527070,1.18440081,3445.2,3444.7,5.32998]
[1719877527275,0.50242388,3445.1,3444.7,5.32998]
[1719877527573,0.18200273,3445.0,3444.7,5.32998]
[1719877528081,2.90242,3445.4,3444.7,5.32998]
[1719877528283,0.5,3445.2,3444.7,5.32998]
[1719877528583,0.5024244,3445.1,3444.7,5.32998]
[1719877528751,0.18200273,3445.1,3444.7,5.32998]
[1719877529276,2.90242,3445.4,3444.7,5.32998]
[1719877529481,0.5,3445.2,3444.7,5.32998]
[1719877529994,0.68442691,3445.1,3444.7,5.32998]
[1719877530152,0.18200273,3445.1,3444.7,5.32998]
[1719877530857,0.18201133,3445.0,3444.7,5.32998]
[1719877531057,2.90242,3445.4,3444.7,5.81632379]
[1719877531295,2.20732561,3445.3,3444.7,5.32998]
[1719877531464,2.52531428,3445.2,3444.7,5.32998]
[1719877531791,2.02531428,3445.1,3444.7,5.32998]
[1719877531990,1.52289057,3445.0,3444.7,5.32998]
[1719877532163,0.18201133,3445.1,3444.7,5.32998]
[1719877532482,2.90242,3445.4,3444.7,5.32998]
[1719877532483,2.02531065,3445.0,3444.7,5.32998]
[1719877532705,0.18201133,3445.0,3444.7,5.32998]
[1719877532988,2.90242,3445.4,3444.7,5.32998]
[1719877533147,0.18201133,3444.9,3444.7,5.32998]
[1719877533347,2.90242,3445.4,3444.7,5.32998]
[1719877533547,2.2073277,3445.3,3444.7,5.32998]
[1719877533781,2.52531637,3445.2,3444.7,5.32998]
[1719877533971,2.02531637,3445.1,3444.8,2.90291]
[1719877534172,0.50242452,3445.0,3444.8,2.90291]
[1719877534417,0.18201133,3445.0,3444.8,2.90291]
[1719877534787,2.90242,3445.4,3444.8,2.90291]
[1719877534950,0.18201133,3444.9,3444.8,2.90291]
[1719877535153,2.90242,3445.4,3444.8,2.90291]
[1719877535381,0.18201133,3444.9,3444.8,2.90291]
[1719877535600,2.90242,3445.4,3444.8,2.90291]
[1719877535767,0.18201133,3444.9,3444.8,2.90291]
[1719877535955,2.90242,3445.4,3444.8,2.90291]
[1719877536155,0.5,3445.2,3444.8,2.90291]
[1719877536466,0.50242435,3445.1,3444.8,2.90291]
[1719877536781,0.50242435,3445.0,3444.8,2.90291]
[1719877536988,0.1820142,3445.1,3444.8,2.90291]
[1719877537161,0.50242394,3445.0,3444.8,3.63891]
[1719877537487,0.18201706,3445.0,3444.8,3.63891]
[1719877537891,0.18201706,3444.9,3444.8,3.63891]
[1719877538275,2.90242,3445.4,3444.8,3.63891]
[1719877538468,0.18201706,3444.9,3444.8,3.63891]
[1719877538668,2.90242,3445.4,3444.8,3.63891]
[1719877538873,0.18201706,3444.9,3444.8,3.63891]
[1719877539077,7.88235,3445.5,3444.8,3.63891]
[1719877539366,0.5,3445.3,3445.0,2.90274]
[1719877539596,0.50242387,3445.2,3445.1,5.15687]
[1719877539767,4.98,3445.5,3445.2,3.63858]
[1719877539967,2.02500284,3445.4,3445.3,2.9025]
[1719877540293,0.50236686,3445.4,3445.3,3.782037]
[1719877540599,4.98,3445.5,3445.3,3.782037]
[1719877540885,4.98,3445.5,3445.3,2.9025]
[1719877541190,4.98,3445.9,3445.2,2.90258]
[1719877541493,0.5,3445.7,3445.1,5.15686]
[1719877541661,2.02509274,3445.6,3445.1,5.15686]
[1719877541861,0.50234857,3445.6,3445.2,2.90258]
[1719877542061,0.68445447,3445.5,3445.2,2.90258]
[1719877542361,0.68445447,3445.5,3445.1,2.2542]
[1719877542362,0.18210305,3445.5,3445.1,2.2542]
[1719877542774,2.90208,3445.8,3445.1,2.2542]
[1719877542969,0.18210305,3445.4,3445.1,2.2542]
[1719877543297,2.90208,3445.8,3445.1,2.2542]
[1719877543458,0.18210305,3445.3,3445.1,5.15679]
[1719877543654,2.90208,3445.8,3445.1,5.15679]
[1719877543879,0.18210305,3445.2,3445.1,5.15679]
[1719877544064,2.90208,3445.8,3445.1,6.036351]
[1719877544364,2.02502073,3445.7,3445.1,5.15679]
[1719877544566,2.52502073,3445.6,3445.1,5.15679]
[1719877544892,0.68210305,3445.6,3445.1,5.15679]
[1719877546586,0.18210305,3445.6,3445.2,2.90256]
[1719877547084,0.5,3445.7,3445.2,2.90256]
[1719877547305,0.18223772,3445.5,3445.2,2.90256]
[1719877547501,2.90208,3445.8,3445.2,3.782095]
[1719877547703,0.18223772,3445.4,3445.2,2.90256]
[1719877547865,2.90208,3445.8,3445.2,2.90256]
[1719877548065,0.18223772,3445.3,3445.2,2.90256]
[1719877548278,2.52508058,3445.7,3445.2,2.90256]
[1719877548279,4.98,3445.9,3445.2,3.0627]
[1719877548579,4.98,3445.9,3445.4,3.63841]
[1719877548580,0.5,3445.7,3445.4,3.63841]
[1719877548773,0.50234772,3445.6,3445.4,3.63841]
[1719877548977,4.98,3445.9,3445.5,5.28425]
[1719877549159,2.4093,3446.4,3445.5,5.28425]
[1719877549160,2.52471177,3445.8,3445.5,5.28425]
[1719877549365,0.50234507,3445.7,3445.5,5.28425]
[1719877549583,3.0,3446.2,3445.5,5.28425]
[1719877549893,0.5,3445.9,3445.5,5.28425]
[1719877550194,0.50234466,3445.8,3445.5,5.28425]
[1719877550505,0.50234466,3445.7,3445.5,5.28425]
[1719877550673,3.0,3446.2,3445.5,5.28425]
[1719877550862,2.8712,3445.9,3445.2,3.63851]
[1719877551061,0.50234211,3445.8,3445.2,3.63851]
[1719877551296,0.50234211,3445.8,3445.3,2.90248]
[1719877551695,2.8712,3445.9,3445.3,2.90248]
[1719877551696,0.50234295,3445.7,3445.3,2.90248]
[1719877551877,2.3712,3445.9,3445.3,2.90248]
[1719877552262,1.00234278,3445.8,3445.3,2.90248]
[1719877552466,0.50234278,3445.7,3445.3,2.90248]
[1719877553001,0.5,3445.8,3445.3,2.90248]
[1719877553197,0.50234313,3445.7,3445.3,2.90248]
[1719877553397,2.3712,3445.9,3445.3,2.90248]
[1719877553602,1.00234313,3445.8,3445.3,2.90248]
[1719877553780,0.50234313,3445.7,3445.3,2.90248]
[1719877553981,0.5,3445.8,3445.3,2.90248]
[1719877554193,0.50234274,3445.7,3445.3,2.90248]
[1719877554486,0.5,3445.8,3445.3,2.90248]
[1719877554699,0.5,3445.8,3445.0,2.4542]
[1719877554912,0.50234274,3445.7,3445.0,2.4542]
[1719877555116,3.40459274,3445.6,3445.0,2.4542]
[1719877555405,0.50234274,3445.5,3445.0,2.4542]
[1719877555768,2.90225,3445.6,3445.1,0.736]
[1719877555969,0.5023628,3445.5,3445.1,0.736]
[1719877556262,2.90225,3445.6,3445.1,0.736]
[1719877556481,0.50236264,3445.5,3445.1,0.736]
[1719877556679,2.90225,3445.6,3445.1,0.736]
[1719877556991,0.18241535,3445.5,3445.1,0.736]
[1719877560492,2.90217,3445.7,3445.2,0.609299]
[1719877560805,0.50236129,3445.6,3445.1,0.736]
[1719877561018,0.18240102,3445.6,3445.1,0.736]
[1719877561309,1.00236106,3445.5,3445.1,0.736]
[1719877561468,0.5,3445.5,3445.1,0.736]
[1719877561893,0.18240102,3445.4,3445.1,0.736]
[1719877562098,0.18240102,3445.4,3445.1,1.635571]
[1719877562409,0.18240102,3445.3,3445.1,1.635571]
[1719877562572,2.90217,3445.7,3445.1,4.538231]
[1719877562909,0.5,3445.5,3445.1,3.63866]
[1719877563270,0.5,3445.5,3445.4,5.19312]
[1719877563598,0.5,3445.9,3445.5,2.90232]
[1719877563801,5.3346,3446.2,3445.5,2.90232]
[1719877563802,0.50234133,3445.8,3445.5,2.90232]
[1719877564002,5.3346,3446.2,3445.5,2.90232]
[1719877564206,0.5,3445.9,3445.5,2.90232]
[1719877564380,0.50233841,3445.8,3445.5,2.90232]
[1719877564583,5.3346,3446.2,3445.5,2.90232]
[1719877564584,0.50233841,3445.7,3445.5,2.90232]
[1719877564770,8.23636,3446.2,3445.5,2.90232]
[1719877564974,0.5,3445.9,3445.5,2.90232]
[1719877565170,0.50233576,3445.8,3445.5,2.90232]
[1719877565606,0.50233576,3446.1,3445.5,2.90232]
[1719877565905,0.5,3445.9,3445.5,2.90232]
[1719877566084,0.50233576,3445.8,3445.5,2.90232]
[1719877566270,0.50233576,3445.7,3445.5,2.90232]
[1719877566465,0.5,3445.9,3445.4,2.2907]
[1719877566688,6.0706,3446.2,3445.1,5.3242]
[1719877566689,0.50233576,3445.8,3445.1,5.3242]
[1719877566916,0.5,3445.8,3445.1,6.59262]
[1719877567084,0.50233576,3445.7,3445.1,6.59262]
[1719877567284,6.0706,3446.2,3445.1,6.59262]
[1719877567484,0.50234455,3445.6,3445.2,2.90258]
[1719877567681,0.5,3445.8,3445.2,2.90258]
[1719877567886,0.50234455,3445.7,3445.2,2.90258]
[1719877568069,0.50234455,3445.6,3445.2,2.90258]
[1719877568276,2.902,3445.9,3445.2,2.90258]
[1719877568506,1.00234221,3445.8,3445.2,2.90258]
[1719877568707,0.50234221,3445.7,3445.2,2.90258]
[1719877568922,0.50234221,3445.6,3445.2,2.90258]
[1719877569289,0.50234221,3445.5,3445.2,2.90258]
[1719877569490,0.50234221,3445.7,3445.3,0.736]
[1719877569687,0.50234221,3445.6,3445.3,3.63848]
[1719877569914,0.50234221,3445.8,3445.3,3.63848]
[1719877570210,1.00234221,3445.8,3445.3,4.37924931]
[1719877570416,0.50234221,3445.7,3445.3,4.37924931]
[1719877570603,0.50234346,3445.6,3445.3,4.37924931]
[1719877570803,0.50234346,3445.5,3445.3,3.63848]
[1719877571116,0.5,3445.8,3445.3,3.63848]
[1719877571296,0.50234351,3445.7,3445.3,3.63848]
[1719877571491,0.50234351,3445.6,3445.3,3.63848]
[1719877571695,0.50234351,3445.5,3445.3,3.63848]
[1719877572018,0.18238671,3445.4,3445.3,4.6243758]
[1719877572418,7.48,3446.0,3445.4,2.90241]
[1719877572626,0.5023313,3445.9,3445.8,0.736]
[1719877572980,0.5023313,3445.9,3445.6,2.90222]
[1719877572981,0.5023313,3445.9,3445.6,3.63822]
[1719877573296,7.48,3446.0,3445.6,4.62647258]
[1719877573528,0.50229194,3445.9,3445.6,3.63822]
[1719877573680,7.48,3446.0,3445.6,3.63822]
[1719877573888,0.50229158,3445.9,3445.6,3.63822]
[1719877574217,0.50229413,3445.8,3445.6,3.63822]